bitfinex/quotes_ETHUSD_20250626
["timestamp","ask_amount","ask_price","bid_price","bid_amount"]
[1750946129664,0.0261268,2430.6,2430.2,4.11479076]
[1750946130460,0.0261268,2430.6,2430.0,4.90090069]
[1750946130682,0.0261268,2430.6,2430.1,11.10152808]
[1750946130881,0.8097,2430.5,2429.7,10.0]
[1750946131190,0.8097,2430.5,2429.6,6.11484213]
[1750946131396,0.8097,2430.5,2429.6,6.11487213]
[1750946131690,0.8097,2430.5,2429.8,4.11541346]
[1750946131919,0.8097,2430.5,2430.0,4.11517012]
[1750946132059,0.8097,2430.5,2429.9,0.82311479]
[1750946132259,0.8097,2430.5,2429.5,10.7666]
[1750946132469,0.7765,2430.0,2429.6,0.2056]
[1750946133013,0.7765,2430.0,2429.1,9.871]
[1750946133168,0.7765,2430.0,2429.2,4.11652117]
[1750946133382,0.7765,2430.0,2429.3,4.11632616]
[1750946133605,0.7765,2430.0,2429.4,4.9395151]
[1750946133892,0.7765,2430.0,2429.4,0.82328473]
[1750946134705,0.7765,2430.0,2429.5,4.11596568]
[1750946135006,0.7765,2430.0,2429.4,0.82328473]
[1750946135978,0.7765,2430.0,2429.2,10.0]
[1750946136160,0.7765,2430.0,2429.2,14.11656672]
[1750946137093,0.7765,2430.0,2429.1,14.11671331]
[1750946137461,0.7765,2430.0,2429.2,4.11657117]
[1750946137964,0.7765,2430.0,2429.3,4.1163458]
[1750946138261,0.7765,2430.0,2429.0,0.8236]
[1750946138461,0.8237,2429.9,2428.9,4.42715593]
[1750946138663,0.8237,2429.8,2428.8,14.11725705]
[1750946139097,0.8237,2429.8,2428.8,10.0]
[1750946139279,0.55,2430.0,2428.8,10.0]
[1750946139280,0.8237,2429.6,2429.0,4.11690531]
[1750946139478,0.8237,2429.6,2428.9,5.8111391]
[1750946139691,0.8237,2429.6,2428.9,1.69413464]
[1750946140494,0.8237,2429.6,2428.9,5.81110897]
[1750946140801,0.8237,2429.6,2428.9,5.81113734]
[1750946141164,0.8237,2429.6,2429.0,6.10974098]
[1750946142169,0.8237,2429.6,2429.0,6.10972984]
[1750946142366,0.8237,2429.6,2429.0,1.99283836]
[1750946143073,0.2056,2429.5,2429.1,0.2056]
[1750946143799,0.2056,2429.5,2429.1,4.32225486]
[1750946143973,0.2056,2429.5,2429.2,1.04319918]
[1750946144302,0.2056,2429.5,2429.1,4.32225486]
[1750946144303,0.2056,2429.5,2429.1,0.2056]
[1750946144879,0.2056,2429.5,2429.1,4.32232461]
[1750946145075,0.8128,2429.4,2428.6,0.67889041]
[1750946145295,0.8241,2429.2,2428.2,1.997]
[1750946145806,0.8241,2429.2,2428.8,4.11719677]
[1750946146098,0.8241,2429.2,2428.9,0.41171968]
[1750946146297,0.8241,2429.2,2428.9,4.52879716]
[1750946146677,0.8241,2429.2,2428.9,4.52877861]
[1750946146881,1.997,2429.8,2429.1,4.11675106]
[1750946147089,1.997,2429.8,2428.9,0.41171968]
[1750946147090,1.997,2429.8,2429.2,4.11642658]
[1750946147289,1.997,2429.8,2429.3,0.41164266]
[1750946147490,1.997,2429.8,2429.4,4.11619629]
[1750946147690,1.997,2429.8,2429.3,4.52796376]
[1750946148080,1.997,2429.8,2429.3,0.41164266]
[1750946148287,1.997,2429.8,2429.2,4.11649335]
[1750946148485,1.997,2429.8,2429.3,4.11640198]
[1750946149604,1.997,2429.8,2429.2,4.11648871]
[1750946150575,1.997,2429.8,2429.2,4.11656377]
[1750946151406,1.997,2429.8,2429.1,4.11666111]
[1750946151603,1.997,2429.8,2429.2,4.93990776]
[1750946152282,0.7902,2429.7,2429.2,0.82335198]
[1750946152626,1.997,2429.8,2428.6,14.42732678]
[1750946152627,0.7598,2429.6,2428.6,0.30978576]
[1750946152770,0.7598,2429.4,2428.6,10.30978576]
[1750946153116,0.7598,2429.4,2428.5,14.90617533]
[1750946153273,0.7598,2429.4,2428.5,10.0]
[1750946153477,0.7598,2429.4,2428.6,1.41178938]
[1750946153478,2.8167,2429.3,2428.6,1.41178938]
[1750946153773,2.8167,2429.3,2428.3,4.94262884]
[1750946153781,0.7934,2429.2,2428.3,14.11808235]
[1750946153972,0.7934,2429.2,2428.4,10.0]
[1750946154200,0.7934,2429.2,2428.3,0.30585795]
[1750946154400,0.7934,2429.2,2428.4,10.0]
[1750946154608,0.7434,2429.2,2428.4,10.0]
[1750946154914,1.997,2429.3,2428.4,1.82363202]
[1750946155076,0.2056,2428.9,2428.4,2.02923202]
[1750946155623,9.141,2428.8,2427.9,1.64877502]
[1750946155785,0.2056,2428.5,2428.0,0.2056]
[1750946156695,14.66765698,2428.6,2427.9,1.64877502]
[1750946156894,0.2056,2428.1,2427.9,1.64877502]
[1750946157079,7.3506,2428.1,2427.9,1.64877502]
[1750946157676,0.829,2428.0,2427.9,1.64877502]
[1750946158083,0.829,2428.0,2427.5,0.2056]
[1750946158279,0.2056,2427.8,2427.3,0.2056]
[1750946158685,7.144,2427.9,2427.3,4.11967255]
[1750946158916,7.144,2427.9,2427.5,0.2056]
[1750946159081,3.0326,2428.0,2427.5,4.32496254]
[1750946159082,1.0346,2428.0,2427.5,4.32496254]
[1750946159279,8.1786,2428.0,2427.5,0.2056]
[1750946159608,8.1786,2428.0,2427.5,4.75757215]
[1750946159809,8.1786,2428.0,2427.6,4.11915284]
[1750946160011,8.1153,2428.4,2427.9,0.2056]
[1750946160192,0.9713,2428.4,2427.9,0.2056]
[1750946161807,0.9713,2428.4,2428.0,4.11848678]
[1750946162078,0.9713,2428.4,2428.1,4.5507704]
[1750946162297,0.9713,2428.4,2428.1,0.43240868]
[1750946162504,0.9713,2428.4,2427.9,0.2056]
[1750946162818,0.7657,2428.4,2427.6,4.11919026]
[1750946163113,0.2056,2428.2,2427.8,4.3245476]
[1750946163414,0.2056,2428.2,2427.9,4.11868867]
[1750946163713,12.09568817,2428.8,2427.5,0.43251643]
[1750946163714,0.7797,2429.1,2428.2,4.11811762]
[1750946163919,0.2056,2428.6,2428.5,4.11776816]
[1750946164103,0.7797,2429.1,2428.7,4.32294982]
[1750946164293,0.7797,2429.1,2428.3,14.52981873]
[1750946164294,0.7797,2429.1,2428.3,0.41181176]
[1750946164614,0.2056,2429.0,2428.5,0.2056]
[1750946165196,0.7797,2429.1,2428.2,0.8148]
[1750946165197,0.2056,2428.8,2428.4,4.11789328]
[1750946165394,0.7797,2429.1,2428.5,4.11764249]
[1750946165602,0.7797,2429.1,2428.6,4.11749421]
[1750946165796,0.7797,2429.1,2428.7,4.11740686]
[1750946166004,0.7797,2429.1,2428.7,1.02911566]
[1750946166415,0.7797,2429.1,2428.7,0.2056]
[1750946166800,0.7797,2429.1,2428.1,4.11836746]
[1750946167004,0.2056,2428.6,2428.1,0.2056]
[1750946167404,0.7599,2428.5,2428.1,0.2056]
[1750946168654,0.2056,2428.6,2428.1,4.32394611]
[1750946168807,0.7599,2428.7,2428.4,0.2056]
[1750946169009,0.2056,2428.9,2428.4,0.2056]
[1750946169308,0.7599,2429.0,2428.6,4.11757427]
[1750946169509,0.7599,2429.0,2428.6,4.32317427]
[1750946169715,0.7599,2429.0,2428.6,0.2056]
[1750946169915,0.7599,2429.0,2428.6,0.63792837]
[1750946170225,0.2056,2428.8,2428.3,0.2056]
[1750946171023,0.7599,2429.0,2428.3,4.11801117]
[1750946171217,0.2056,2428.9,2428.5,0.2056]
[1750946171720,0.2056,2428.9,2428.5,4.32336682]
[1750946172024,0.2056,2428.9,2428.5,0.2056]
[1750946172412,0.2056,2428.9,2428.5,4.32334604]
[1750946172612,0.2056,2428.9,2428.6,0.4323346]
[1750946173529,0.2056,2428.9,2428.6,4.54993314]
[1750946173709,0.2056,2428.9,2428.6,0.4323346]
[1750946174035,0.2056,2428.9,2428.6,4.54992266]
[1750946174206,0.2056,2428.9,2428.6,0.4323346]
[1750946174399,0.2056,2428.9,2428.5,4.3233636]
[1750946177136,0.2056,2428.9,2428.6,4.117585]
[1750946177313,0.2056,2428.9,2428.6,4.11755846]
[1750946178095,0.2056,2428.9,2428.6,4.11749556]
[1750946178898,0.2056,2428.9,2428.7,4.11740767]
[1750946179104,0.2056,2428.9,2428.7,4.54970844]
[1750946179317,0.809,2429.3,2429.0,4.11685789]
[1750946179536,0.959,2429.5,2429.2,4.11642333]
[1750946179838,0.2056,2429.7,2429.3,4.11631969]
[1750946180006,0.2056,2429.7,2429.4,4.11624269]
[1750946180206,0.2056,2429.7,2429.3,4.11637584]
[1750946180406,0.2056,2429.7,2429.4,4.11620482]
[1750946180616,0.2056,2429.7,2429.5,4.11607134]
[1750946180848,0.2056,2429.7,2429.5,4.11607326]
[1750946181311,0.2056,2429.7,2429.4,4.11622067]
[1750946181741,0.2056,2429.7,2429.5,4.11606247]
[1750946182429,0.2056,2429.7,2429.4,4.11618303]
[1750946182831,0.2056,2429.7,2429.5,4.11607155]
[1750946183229,0.2056,2429.7,2429.4,4.11620751]
[1750946183642,0.2056,2429.7,2429.5,4.11604094]
[1750946184012,0.2056,2429.7,2429.4,4.11617308]
[1750946184210,0.2056,2429.7,2429.2,0.2056]
[1750946184446,0.2056,2429.7,2429.2,4.32209718]
[1750946184652,0.2056,2429.7,2429.3,4.1162819]
[1750946184961,9.877,2430.3,2429.2,5.16598149]
[1750946184962,1.992,2430.5,2429.5,4.11607326]
[1750946185109,1.992,2430.5,2429.4,0.8067]
[1750946185110,0.2056,2430.2,2429.6,0.2056]
[1750946185309,0.7862,2430.4,2429.9,4.11531663]
[1750946185611,0.9918,2430.4,2429.9,4.32091663]
[1750946185841,0.9918,2430.4,2429.4,12.7987]
[1750946185842,0.7862,2430.4,2429.7,4.11562235]
[1750946186155,0.7862,2430.4,2429.8,0.2056]
[1750946186156,0.2056,2430.2,2429.8,0.2056]
[1750946187651,0.2056,2430.1,2429.6,4.32149834]
[1750946187958,0.7735,2430.0,2429.6,4.32149834]
[1750946188519,0.7735,2430.0,2429.7,4.11572417]
[1750946188938,0.7735,2430.0,2429.6,4.32143289]
[1750946189163,0.7735,2430.0,2429.6,5.24585192]
[1750946189533,0.7735,2430.0,2429.6,1.13001903]
[1750946189742,0.2056,2430.2,2429.9,4.11526042]
[1750946189925,0.2056,2430.2,2429.8,4.32107011]
[1750946190124,0.2056,2430.2,2429.9,4.11538374]
[1750946190325,0.2056,2430.2,2430.0,4.11514282]
[1750946190529,0.2056,2430.4,2430.0,0.8006]
[1750946190728,0.2056,2430.4,2429.9,4.32097927]
[1750946190964,0.2056,2430.4,2429.9,4.32088961]
[1750946191258,0.2056,2430.4,2429.9,5.33820371]
[1750946191627,0.2056,2430.4,2429.9,1.2229141]
[1750946191828,0.2056,2430.4,2429.9,5.33822045]
[1750946192163,0.0261268,2430.6,2430.4,4.11441521]
[1750946192351,0.0261268,2430.6,2430.5,4.11437975]
[1750946192731,0.0261268,2430.6,2430.4,4.11447944]
[1750946193063,0.0261268,2430.6,2430.4,0.2056]
[1750946195660,0.0261268,2430.6,2430.4,4.3201287]
[1750946195842,0.0261268,2430.6,2430.4,5.16350351]
[1750946196169,0.0261268,2430.6,2430.4,1.0490932]
[1750946196748,0.0261268,2430.6,2430.4,5.1635547]
[1750946196934,0.0261268,2430.6,2430.5,4.11437975]
[1750946197958,0.0261268,2430.6,2430.4,5.16358107]
[1750946198472,0.0261268,2430.6,2430.5,4.11437975]
[1750946198873,0.0261268,2430.6,2430.5,5.04217583]
[1750946199464,0.0261268,2430.6,2430.5,5.81477583]
[1750946199665,0.0261268,2430.6,2430.5,6.02037583]
[1750946200376,0.0261268,2430.6,2430.5,5.81477583]
[1750946200577,0.0261268,2430.6,2430.5,15.81477583]
[1750946202539,0.0261268,2430.6,2430.5,16.36477583]
[1750946202746,0.0261268,2430.6,2430.5,15.81477583]
[1750946203946,0.0261268,2430.6,2430.5,22.93577583]
[1750946204349,0.0261268,2430.6,2430.5,15.81477583]
[1750946204584,0.0261268,2430.6,2430.5,0.92779608]
[1750946204888,0.0261268,2430.6,2430.1,4.1148939]
[1750946205180,0.0261268,2430.6,2430.2,10.0]
[1750946205683,0.7711,2430.5,2429.9,1.0173141]
[1750946205853,0.7711,2430.5,2429.8,10.0]
[1750946206051,0.7711,2430.5,2429.8,14.11552584]
[1750946206581,0.7711,2430.5,2429.8,10.0]
[1750946206786,0.7711,2430.5,2429.5,4.11599006]
[1750946207077,0.7805,2430.4,2429.6,1.12349901]
[1750946207267,0.7805,2430.4,2429.4,4.11612685]
[1750946207469,0.7805,2430.4,2429.5,10.0]
[1750946207780,0.7801,2430.2,2429.5,4.11605305]
[1750946208347,0.7801,2430.2,2429.4,4.11611799]
[1750946208549,0.7801,2430.2,2429.4,14.11611991]
[1750946208753,0.7801,2430.2,2429.5,2.02153939]
[1750946209200,0.7801,2430.2,2429.3,11.983]
[1750946209374,0.8317,2430.1,2428.9,0.7569]
[1750946209551,0.55,2429.9,2428.8,4.11716553]
[1750946209753,0.8317,2429.7,2428.9,10.0]
[1750946210054,4.88114481,2429.6,2428.7,0.67087938]
[1750946210255,0.7652,2429.4,2428.3,4.11800943]
[1750946210507,0.7652,2429.0,2428.6,0.2056]
[1750946211095,0.7652,2429.0,2428.2,14.11816767]
[1750946211250,0.2056,2428.9,2428.5,0.2056]
[1750946211656,0.2056,2428.9,2428.5,4.7556285]
[1750946211974,0.2056,2428.9,2428.5,0.63795318]
[1750946212383,10.0,2429.2,2427.8,2.46462488]
[1750946212384,0.7652,2428.8,2427.8,2.46462488]
[1750946212553,0.2056,2428.6,2428.1,0.2056]
[1750946212877,0.7652,2428.5,2427.9,4.11870167]
[1750946213078,0.7652,2428.5,2427.8,1.67402488]
[1750946213392,0.2056,2428.2,2427.8,1.87962488]
[1750946213604,0.2056,2428.2,2427.9,0.59986834]
[1750946213758,0.7652,2428.1,2427.8,1.87962488]
[1750946214257,0.9708,2428.1,2427.8,1.67402488]
[1750946215391,7.117,2428.6,2428.3,4.11810731]
[1750946215392,0.2056,2428.5,2428.3,4.11810731]
[1750946215600,0.8222,2428.9,2428.8,4.11725955]
[1750946215772,0.8222,2429.3,2428.8,4.11720877]
[1750946216100,0.2056,2429.2,2428.8,4.52897748]
[1750946216299,0.2056,2429.2,2428.9,4.11709004]
[1750946216506,0.2056,2429.2,2428.9,4.11708441]
[1750946216970,0.2056,2429.2,2428.9,4.11709004]
[1750946217305,0.2056,2429.2,2428.8,4.52895888]
[1750946217606,0.2056,2429.2,2428.7,0.2056]
[1750946217607,0.2056,2429.2,2428.9,0.47345589]
[1750946217808,1.984,2429.6,2429.1,4.11675106]
[1750946217809,0.7782,2429.6,2429.1,4.11675106]
[1750946218020,0.9838,2429.6,2429.2,0.2056]
[1750946221590,0.2056,2429.4,2429.0,4.32235813]
[1750946222097,0.2056,2429.4,2428.8,10.0]
[1750946222098,0.9838,2429.6,2429.2,0.2056]
[1750946222402,0.2056,2429.5,2429.0,4.32247583]
[1750946222601,0.2056,2429.5,2429.1,0.84394274]
[1750946222987,0.2056,2429.5,2429.0,0.2056]
[1750946223499,0.2056,2429.2,2428.8,10.0]
[1750946223711,0.7782,2429.6,2429.3,4.11630928]
[1750946223889,0.9838,2429.6,2429.1,0.2056]
[1750946224221,0.9838,2429.6,2428.5,10.0]
[1750946224222,0.2056,2429.4,2428.9,4.32261129]
[1750946224420,0.2056,2429.4,2429.0,0.84398704]
[1750946224593,0.2056,2429.4,2429.0,4.96086119]
[1750946224774,0.2056,2429.4,2429.0,0.84398704]
[1750946224977,0.2056,2429.4,2428.9,0.2056]
[1750946225206,0.2056,2429.4,2428.9,4.32265998]
[1750946225408,0.2056,2429.4,2429.0,4.11683219]
[1750946225609,0.2056,2429.4,2429.1,4.1167214]
[1750946225907,0.9838,2429.6,2429.1,4.3223214]
[1750946226112,0.7852,2429.8,2429.1,1.04953437]
[1750946226316,0.2056,2429.7,2429.4,4.11616082]
[1750946226486,0.7852,2429.8,2429.5,0.2056]
[1750946226687,0.7852,2429.8,2429.2,4.11647142]
[1750946226889,0.2056,2429.7,2429.3,0.2056]
[1750946227812,0.7852,2429.8,2429.1,4.11673271]
[1750946228007,0.2056,2429.6,2429.1,4.32233271]
[1750946228485,0.2056,2429.6,2429.1,0.2056]
[1750946229008,0.2056,2429.6,2429.2,4.11656788]
[1750946229311,0.2056,2429.6,2429.1,4.32229253]
[1750946229683,0.7852,2429.5,2428.6,10.0]
[1750946229985,0.2056,2429.0,2428.7,1.08208]
[1750946230187,4.11540747,2429.9,2428.8,4.11718474]
[1750946230410,0.2056,2429.3,2428.8,0.2056]
[1750946230611,0.83,2429.2,2428.5,4.11765994]
[1750946230814,0.2056,2429.1,2428.7,0.2056]
[1750946232118,0.83,2429.2,2428.0,9.5381493]
[1750946232283,0.2056,2428.5,2428.1,1.15941493]
[1750946232481,0.2056,2428.5,2428.1,0.2056]
[1750946232710,0.2056,2428.5,2427.8,2.43362488]
[1750946232912,0.2056,2428.4,2427.9,0.2056]
[1750946233089,0.2056,2428.4,2427.9,10.2056]
[1750946233278,0.7559,2428.7,2427.9,10.2056]
[1750946233279,0.2056,2428.6,2428.1,0.2056]
[1750946233482,0.9615,2428.7,2428.3,0.2056]
[1750946233713,0.7559,2428.7,2428.1,1.43242161]
[1750946233883,0.2056,2428.6,2428.1,0.2056]
[1750946234191,0.7552,2428.5,2428.0,4.118488]
[1750946234390,0.7552,2428.5,2427.9,0.7932]
[1750946234391,0.7552,2428.5,2428.1,4.11843636]
[1750946234704,0.7552,2428.5,2428.0,4.11851826]
[1750946234882,0.7552,2428.5,2428.0,0.90306199]
[1750946235084,0.7552,2428.5,2427.9,4.11869094]
[1750946235314,0.7552,2428.5,2427.7,10.0]
[1750946235619,0.786,2428.8,2428.4,4.11789274]
[1750946236198,0.786,2428.8,2428.5,4.11770951]
[1750946236512,0.786,2428.8,2428.1,14.11828489]
[1750946236706,1.5755,2428.8,2428.1,14.11829618]
[1750946236905,1.5755,2428.8,2428.2,4.11817426]
[1750946237092,1.5755,2428.8,2428.1,10.0]
[1750946237494,1.5755,2428.8,2428.0,1.975]
[1750946237788,0.86845,2428.7,2427.8,6.84913349]
[1750946237988,0.86845,2428.7,2428.0,4.11860028]
[1750946238215,0.786,2428.8,2428.0,10.0]
[1750946238395,0.786,2428.8,2428.0,4.11848196]
[1750946238600,0.786,2428.8,2428.1,4.11842755]
[1750946239002,0.786,2428.8,2428.0,4.11853797]
[1750946239292,0.786,2428.8,2428.2,4.11816108]
[1750946239498,0.786,2428.8,2427.9,10.0]
[1750946239707,0.786,2428.8,2427.8,2.7303]
[1750946239708,0.796,2428.7,2427.8,10.0]
[1750946239890,0.796,2428.7,2427.8,4.1188891]
[1750946240090,0.796,2428.7,2427.9,4.1186974]
[1750946240291,0.796,2428.7,2427.9,0.8256]
[1750946240524,0.796,2428.7,2428.2,4.11824156]
[1750946240736,0.796,2428.7,2428.0,5.20114863]
[1750946240737,0.796,2428.7,2428.1,4.11832367]
[1750946240918,0.796,2428.7,2428.2,4.11818944]
[1750946241123,0.796,2428.7,2428.3,4.11808965]
[1750946241321,0.796,2428.7,2428.4,4.1178398]
[1750946241628,0.796,2428.7,2428.0,5.20114658]
[1750946241629,0.796,2428.7,2428.3,4.11805109]
[1750946241845,0.796,2428.7,2428.2,4.11819108]
[1750946242136,0.796,2428.7,2428.3,4.11806571]
[1750946242337,14.54115859,2429.5,2428.5,24.693788]
[1750946242338,0.8182,2429.5,2428.5,24.693788]
[1750946242633,0.8182,2429.5,2429.1,4.11671972]
[1750946242809,0.8182,2429.8,2429.2,4.11643412]
[1750946243142,1.09752,2429.8,2429.1,4.11666913]
[1750946243440,1.09752,2429.8,2429.0,0.7872]
[1750946243611,1.73874412,2430.1,2429.5,4.11598739]
[1750946243960,0.7609,2430.1,2429.6,4.11587349]
[1750946244116,0.9665,2430.1,2429.7,4.11563658]
[1750946244620,0.9665,2430.1,2429.6,4.32142143]
[1750946244940,0.9665,2430.1,2429.6,4.32141121]
[1750946245243,0.9665,2430.1,2429.7,4.11572478]
[1750946245411,0.9665,2430.1,2429.6,0.2056]
[1750946245810,0.7609,2430.1,2429.8,4.11551807]
[1750946246008,0.7609,2430.1,2429.9,0.2056]
[1750946246239,0.9665,2430.1,2429.6,0.2056]
[1750946246442,0.9665,2430.1,2429.6,4.3214799]
[1750946246644,0.9665,2430.1,2429.6,5.16524986]
[1750946247023,0.9665,2430.1,2429.7,4.11572724]
[1750946247230,0.816,2430.4,2429.6,1.62046996]
[1750946247430,0.2056,2430.3,2430.0,4.11513069]
[1750946248013,0.2056,2430.3,2429.9,0.2056]
[1750946248529,0.2056,2430.3,2429.9,4.32097923]
[1750946248735,0.2056,2430.3,2430.0,4.11521723]
[1750946249328,0.2056,2430.3,2429.9,4.32097482]
[1750946249848,0.2056,2430.3,2430.0,4.11520922]
[1750946250550,0.2056,2430.3,2429.9,4.32091451]
[1750946251048,0.2056,2430.3,2430.0,4.11517715]
[1750946251266,0.2056,2430.3,2429.9,4.32093488]
[1750946251424,0.2056,2430.3,2430.0,4.1152059]
[1750946252235,0.2056,2430.3,2429.9,1.04924445]
[1750946252441,0.2056,2430.3,2430.0,4.11513096]
[1750946253253,0.2056,2430.3,2429.9,4.32093636]
[1750946253449,0.2056,2430.3,2430.1,4.11498859]
[1750946253756,0.0261268,2430.6,2430.4,4.11454157]
[1750946253919,0.0261268,2430.6,2430.3,4.11455196]
[1750946254123,0.0261268,2430.6,2430.3,4.11462818]
[1750946254549,0.0261268,2430.6,2430.2,4.32042912]
[1750946254750,0.0261268,2430.6,2430.0,6.08907885]
[1750946254937,0.2317268,2430.6,2430.1,6.05168917]
[1750946255550,0.2317268,2430.6,2430.1,1.93664508]
[1750946255745,0.0261268,2430.6,2430.4,4.11445417]
[1750946256132,0.0261268,2430.6,2430.5,16.08837975]
[1750946256458,0.0261268,2430.6,2430.5,30.47744075]
[1750946256632,0.0261268,2430.6,2430.5,33.96775865]
[1750946256831,0.8018,2431.9,2431.7,4.11228906]
[1750946257351,0.8018,2431.9,2431.4,0.783]
[1750946257352,0.7553,2432.3,2431.6,4.11238609]
[1750946257857,0.8192,2432.2,2431.3,4.11293168]
[1750946258056,0.8192,2432.2,2431.2,14.11314274]
[1750946258229,0.8192,2432.2,2431.2,15.52108934]
[1750946258557,0.7911,2432.0,2431.0,0.8143]
[1750946258752,0.7911,2432.0,2430.9,10.0]
[1750946258753,0.7911,2431.9,2430.9,10.0]
[1750946258927,0.7911,2431.9,2431.0,4.11346766]
[1750946259462,0.7911,2431.9,2431.3,4.11300734]
[1750946259755,0.7911,2431.9,2431.2,6.0841545]
[1750946260054,0.7911,2431.9,2431.5,4.11268734]
[1750946260761,0.7911,2431.9,2431.3,0.60841545]
[1750946260930,0.7911,2431.9,2431.2,4.11319446]
[1750946261130,0.7911,2431.9,2431.3,4.1128802]
[1750946261836,0.7911,2431.9,2431.4,4.11276576]
[1750946262259,0.7911,2431.9,2431.5,4.11267437]
[1750946262661,0.7911,2431.9,2431.4,4.11277547]
[1750946262858,0.7911,2431.9,2431.3,4.11300551]
[1750946263063,0.7911,2431.9,2431.3,5.72135369]
[1750946263255,0.7911,2431.9,2431.1,11.971]
[1750946263431,0.7911,2431.9,2431.1,16.08427609]
[1750946263626,0.7911,2431.9,2431.1,10.0]
[1750946263831,0.7911,2431.9,2430.9,6.08365567]
[1750946264057,0.7911,2431.9,2430.9,11.97]
[1750946264243,0.7911,2431.9,2431.0,1.60837725]
[1750946264668,0.7911,2431.9,2431.0,5.72182981]
[1750946264959,0.7911,2431.9,2431.1,4.11324481]
[1750946265162,0.7911,2431.9,2431.2,4.11311402]
[1750946265637,0.7911,2431.9,2431.1,4.11327542]
[1750946265960,0.7911,2431.9,2431.2,0.57216527]
[1750946266258,0.7911,2431.9,2431.2,4.11310629]
[1750946266462,0.2056,2431.8,2431.3,4.31851261]
[1750946266634,0.2056,2431.8,2431.3,0.2056]
[1750946266830,0.2056,2431.8,2430.6,0.7918]
[1750946266831,0.7553,2431.7,2430.7,4.11401734]
[1750946267041,0.2056,2431.5,2431.0,0.2056]
[1750946267371,0.2056,2431.2,2430.7,0.2056]
[1750946267540,0.2056,2431.2,2430.7,1.30056978]
[1750946267950,0.7639,2431.4,2430.4,4.11447907]
[1750946268147,0.7639,2430.8,2430.5,0.2056]
[1750946268350,0.7639,2430.8,2430.5,4.31994375]
[1750946268738,0.7639,2430.8,2430.5,0.2056]
[1750946268966,0.7639,2430.8,2430.5,4.31995983]
[1750946269166,0.7639,2430.8,2430.5,1.24605564]
[1750946269539,0.7639,2430.8,2430.4,4.11454757]
[1750946269760,0.2056,2430.7,2430.2,0.2056]
[1750946270381,0.2056,2430.7,2430.3,4.1146127]
[1750946270550,0.2056,2430.7,2430.2,4.32046426]
[1750946270968,0.2056,2430.7,2430.2,0.2056]
[1750946271335,0.7639,2430.8,2430.1,4.11494649]
[1750946271576,0.2056,2430.5,2430.1,4.32054649]
[1750946271882,0.2056,2430.5,2430.1,6.16416779]
[1750946272078,0.2056,2430.5,2430.2,4.11476892]
[1750946272285,0.7639,2430.8,2430.4,4.11454904]
[1750946272572,0.2056,2430.7,2430.2,4.32041513]
[1750946272771,0.2056,2430.7,2430.3,4.11471442]
[1750946272975,0.2056,2430.7,2430.3,4.11463727]
[1750946273477,0.2056,2430.7,2430.2,4.32041502]
[1750946273671,0.2056,2430.7,2430.2,5.34833149]
[1750946273841,0.2056,2430.7,2430.2,1.23351647]
[1750946274046,0.7639,2430.8,2429.7,14.93762332]
[1750946274304,12.0838784,2430.5,2428.0,4.66]
[1750946274444,0.8172,2430.3,2428.9,12.895907]
[1750946274647,0.8172,2430.3,2428.8,0.8132]
[1750946274648,0.8172,2430.2,2429.3,10.0]
[1750946274869,0.8172,2430.2,2429.0,1.3709107]
[1750946275182,0.8172,2429.7,2428.6,10.0]
[1750946275362,0.8252,2429.6,2428.7,4.11734143]
[1750946275885,0.8252,2429.6,2428.9,10.0]
[1750946276244,0.8252,2429.6,2428.8,10.0]
[1750946276443,0.8252,2429.6,2428.8,14.11715113]
[1750946276654,0.8252,2429.6,2428.9,1.82345723]
[1750946276855,4.11642376,2429.3,2428.1,4.93798021]
[1750946277053,7.651,2429.5,2428.1,4.93798021]
[1750946277054,0.7924,2429.1,2428.3,4.11810678]
[1750946277287,0.7924,2429.1,2428.3,14.11794927]
[1750946277572,10.0,2429.8,2428.3,14.11794927]
[1750946277573,0.7924,2429.4,2428.8,4.1171507]
[1750946277767,0.7924,2429.4,2428.9,0.82345486]
[1750946278365,0.7924,2429.4,2428.7,4.11741367]
[1750946278903,0.7924,2429.4,2428.6,10.8224]
[1750946279261,0.7924,2429.4,2428.9,4.11696194]
[1750946279600,0.8045,2430.2,2428.8,11.3191]
[1750946279810,10.8045,2430.2,2429.2,4.11657661]
[1750946279991,1.27755,2430.1,2429.4,4.11623531]
[1750946280191,0.8045,2430.2,2429.5,4.11597437]
[1750946280513,0.8045,2430.2,2429.6,4.11576466]
[1750946280663,0.8045,2430.2,2429.4,0.7861]
[1750946280664,0.8045,2430.2,2429.5,4.11604978]
[1750946281077,0.8045,2430.2,2429.4,4.90232358]
[1750946281078,0.8045,2430.2,2429.8,4.11556049]
[1750946281600,0.8045,2430.2,2429.7,4.11565445]
[1750946281765,0.8045,2430.2,2429.7,0.82314986]
[1750946281960,0.8045,2430.2,2429.6,4.11581231]
[1750946282604,0.8045,2430.2,2429.7,4.11567176]
[1750946282809,0.8045,2430.2,2429.8,4.11548919]
[1750946283007,0.8045,2430.2,2429.7,4.11567334]
[1750946283299,0.8045,2430.2,2429.5,4.11600431]
[1750946283499,0.8045,2430.2,2429.7,4.11573236]
[1750946283711,0.8045,2430.2,2429.6,0.90183071]
[1750946284003,0.8045,2430.2,2430.0,4.11516849]
[1750946284418,0.8045,2430.2,2429.5,4.11607326]
[1750946284419,1.971,2430.4,2429.9,0.2056]
[1750946284420,0.2056,2430.4,2429.9,0.2056]
[1750946284614,0.8039,2430.6,2430.1,4.32062021]
[1750946284781,0.8039,2430.6,2430.3,4.32023852]
[1750946285106,0.8039,2430.6,2430.3,0.2056]
[1750946285489,0.8039,2430.6,2429.7,10.0]
[1750946285695,0.2056,2430.4,2430.1,0.2056]
[1750946286668,0.776,2430.3,2429.3,0.7786]
[1750946286913,0.776,2429.9,2429.5,0.2056]
[1750946287083,0.776,2429.9,2429.5,4.32158153]
[1750946287284,0.776,2429.9,2429.5,5.16536719]
[1750946287509,0.776,2429.9,2429.5,1.04938566]
[1750946287870,0.776,2429.9,2429.7,4.11564327]